[Event "55th Biel Festival MTO 2022"]
[Site "Biel"]
[Date "2022.07.21"]
[Round "8.30"]
[White "Papadiamandis, Elliot"]
[Black "Meduri, Aakaash"]
[Result "0-1"]
[ECO "B12"]
[WhiteElo "2369"]
[BlackElo "2000"]
[Annotator "ChessBase"]
[PlyCount "98"]
[EventDate "2022.07.13"]
[EventType "swiss"]
[EventCountry "SUI"]
[SourceTitle "playchess.com"]
[Source "ChessBase"]
[SourceQuality "1"]
[TimeControl "40/5400+30:1800+30"]

1. e4 {[%emt 0:02:02]} Na6 {[%emt 0:00:44]} 2. d4 {[%emt 0:02:43]} c6 {[%emt 0:01:57]} 3. Nf3 {[%emt 0:08:47]} g6 {[%emt 0:01:50]} 4. Nc3 {[%emt 0:08:51]} Bg7 {[%emt 0:02:07]} 5. Bf4 {[%emt 0:02:50]} Nc7 {[%emt 0:02:17]} 6. e5 {[%emt 0:01:33]} Ne6 {[%emt 0:02:26]} 7. Be3 {[%emt 0:03:50]} Nh6 {[%emt 0:02:42]} 8. Qd2 {[%emt 0:05:56]} Nf5 {[%emt 0:02:14]} 9. O-O-O {[%emt 0:02:29]} Nxe3 {[%emt 0:09:18]} 10. fxe3 {[%emt 0:05:54]} d5 {[%emt 0:08:46]} 11. exd6 {[%emt 0:00:28]} Qxd6 {[%emt 0:00:26]} 12. Kb1 {[%emt 0:02:04]} O-O {[%emt 0:03:13]} 13. Bc4 {[%emt 0:09:18]} Qb4 {[%emt 0:08:40]} 14. Bb3 {[%emt 0:01:25]} a5 {[%emt 0:00:27]} 15. a3 {[%emt 0:02:25]} Qb6 {[%emt 0:02:35]} 16. h4 {[%emt 0:03:14]} h6 {[%emt 0:02:52]} 17. Rhf1 {[%emt 0:03:10]} Qc7 {[%emt 0:01:41]} 18. h5 {[%emt 0:08:28]} g5 {[%emt 0:01:09]} 19. Ne2 {[%emt 0:05:28]} c5 {[%emt 0:03:53]} 20. d5 {[%emt 0:05:28]} c4 {[%emt 0:03:51]} 21. dxe6 {[%emt 0:00:01]} cxb3 {[%emt 0:00:23]} 22. exf7+ {[%emt 0:00:23]} Rxf7 {[%emt 0:00:09]} 23. cxb3 {[%emt 0:05:44]} Bf5+ {[%emt 0:01:53]} 24. Ka1 {[%emt 0:00:31]} Raf8 {[%emt 0:01:37]} 25. Nfd4 {[%emt 0:00:00]} Bg4 {[%emt 0:00:29]} 26. Rxf7 {[%emt 0:00:14]} Rxf7 {[%emt 0:00:11]} 27. Rc1 {[%emt 0:00:45]} Qe5 {[%emt 0:05:35]} 28. Nc3 {[%emt 0:02:16]} Bxh5 {[%emt 0:01:28]} 29. Na4 {[%emt 0:01:21]} Bg6 {[%emt 0:03:13]} 30. Nc5 {[%emt 0:00:47]} Qd5 {[%emt 0:05:35]} 31. Nce6 {[%emt 0:02:22]} Bxd4 {[%emt 0:00:57]} 32. Rc8+ {[%emt 0:00:48]} Kh7 {[%emt 0:00:28]} 33. Nf8+ {[%emt 0:00:54]} Rxf8 {[%emt 0:00:11]} 34. Rxf8 {[%emt 0:00:04]} Qe4 {[%emt 0:00:29]} 35. Rf1 {[%emt 0:00:32]} Qxe3 {[%emt 0:00:53]} 36. Qd1 {[%emt 0:02:31]} Bf6 {[%emt 0:01:12]} 37. Re1 {[%emt 0:00:51]} Qd3 {[%emt 0:00:50]} 38. Qxd3 {[%emt 0:00:28]} Bxd3 {[%emt 0:00:11]} 39. Re6 {[%emt 0:01:34]} Kg7 {[%emt 0:02:14]} 40. a4 {[%emt 0:00:54]} Kf7 {[%emt 0:00:50]} 41. Re3 {[%emt 0:30:01]} Bf5 {[%emt 0:30:46]} 42. Ka2 {[%emt 0:00:01]} Bd4 {[%emt 0:00:39]} 43. Rf3 {[%emt 0:00:01]} Kg6 {[%emt 0:00:22]} 44. b4 {[%emt 0:00:04]} axb4 {[%emt 0:00:22]} 45. Kb3 {[%emt 0:00:18]} e5 {[%emt 0:00:20]} 46. Kxb4 {[%emt 0:00:26]} Bxb2 {[%emt 0:00:27]} 47. Kc5 {[%emt 0:00:33]} Be4 {[%emt 0:00:35]} 48. Rb3 {[%emt 0:00:26]} Bd4+ {[%emt 0:00:10]} 49. Kc4 {[%emt 0:00:20]} Bxg2 {[%emt 0:00:16]} 0-1

[Event "55th Biel Festival MTO 2022"]
[Site "Biel"]
[Date "2022.07.21"]
[Round "8.31"]
[White "Louis, Thibault"]
[Black "Unuk, Laura"]
[Result "0-1"]
[ECO "C01"]
[WhiteElo "2140"]
[BlackElo "2340"]
[Annotator "TA"]
[PlyCount "126"]
[EventDate "2022.07.13"]
[EventType "swiss"]
[EventCountry "SUI"]
[SourceTitle "playchess.com"]
[Source "ChessBase"]
[SourceQuality "1"]
[TimeControl "40/5400+30:1800+30"]

{[%evp 9,126,10,14,0,0,-22,-25,-30,0,-37,-8,-39,0,-31,-16,-18,-16,-14,-11,-11,-17,-11,-9,-69,-70,-72,0,0,0,0,-8,-20,16,6,43,41,50,44,89,0,0,0,0,0,0,-7,0,0,0,0,0,0,0,0,0,0,0,0,0,0,0,0,0,0,16,0,0,-4,-5,-8,-11,-10,0,-40,0,0,0,0,0,-51,-56,-96,0,-8,-8,-8,-8,-8,-8,-47,-8,-61,-87,-40,-49,-311,-252,-818,-802,-633,-547,-883,-883,-875,-870,-1148,-981,-5401,-3614,-29982,-29983,-29985,-29986,-29987,-29988,-29989,-29989,-29986,-29987]} 1. e4 {[%emt 0:03:02]} e6 {[%emt 0:00:15]} 2. d4 {[%emt 0:01:21]} d5 {[%emt 0:00:13]} 3. exd5 {[%emt 0:01:26]} exd5 {[%emt 0:00:42]} 4. Nf3 {[%emt 0:00:12]} Nc6 {[%emt 0:01:02]} 5. Bb5 {[%emt 0:09:27]} Bd6 {[%emt 0:00:45]} 6. Nc3 {[%emt 0:00:35] C01: French: Exchange Variation.} Nge7 {[%emt 0:02:56]} 7. Bg5 {[%emt 0:07:05]} f6 {[%emt 0:08:41]} 8. Bh4 {[%emt 0:00:19] [#] Black has an edge.} a6 $146 {[%emt 0:04:58]} ({Predecessor:} 8... Bg4 9. h3 Bh5 10. Qd3 Qd7 11. O-O-O O-O-O 12. Kb1 Bg6 13. Qd2 Nf5 14. Nxd5 a6 {0-1 (55) Bidault,R-Lavanant,A (1955) Europe Echecs INT 2022}) 9. Be2 {[%emt 0:07:18]} (9. Bxc6+ $5 bxc6 10. O-O $11) 9... Bf5 {[%emt 0:02:01]} 10. Bg3 {[%emt 0:00:44]} Qd7 {[%emt 0:07:09]} 11. Qd2 {[%emt 0:02:18]} g5 {[%emt 0:13:50]} 12. Nd1 {[%emt 0:01:16]} h5 {[%emt 0:03:45]} 13. Bxd6 {[%emt 0:05:42]} Qxd6 {[%emt 0:00:41]} 14. Ne3 {[%emt 0:00:16]} Be4 {[%emt 0:01:26]} 15. O-O-O {[%emt 0:00:58]} O-O-O {[%emt 0:04:33]} 16. h4 {[%emt 0:04:38]} (16. Ne1 $11) 16... g4 $15 {[%emt 0:08:49]} 17. Ne1 {[%emt 0:01:11]} Kb8 {[%emt 0:00:21] Black is more active.} (17... f5 $1 $17) 18. f3 $11 {[%emt 0:01:13]} gxf3 {[%emt 0:02:36]} 19. gxf3 {[%emt 0:00:10]} Bh7 {[%emt 0:01:27]} 20. c3 {[%emt 0:03:57]} Rde8 {[%emt 0:11:19]} 21. Bd3 {[%emt 0:01:40]} Qf4 {[%emt 0:02:59]} 22. N3g2 {[%emt 0:05:11]} Qg3 {[%emt 0:01:31]} 23. Nf4 {[%emt 0:05:42]} Bxd3 {[%emt 0:06:01]} 24. Rh3 {[%emt 0:00:13]} (24. Nexd3 $16 {Threatens to win with Rdg1.} Qxf3 25. Nc5) 24... Qg8 {[%emt 0:01:44] ...Bb5 is the strong threat.} 25. Nexd3 {[%emt 0:00:22]} Nf5 {[%emt 0:03:25]} 26. Re1 {[%emt 0:12:38]} Qf7 {[%emt 0:00:40]} 27. Rh2 {[%emt 0:03:22]} Na5 {[%emt 0:03:30]} 28. b3 {[%emt 0:04:01]} Nc6 {[%emt 0:00:35]} 29. Nc5 {[%emt 0:04:33]} Rxe1+ {[%emt 0:01:04]} 30. Qxe1 {[%emt 0:00:06]} Re8 {[%emt 0:00:10]} 31. Re2 {[%emt 0:09:32]} Rxe2 {[%emt 0:00:16]} 32. Nxe2 {[%emt 0:04:17]} Qe7 {[%emt 0:03:20]} 33. Qf2 {[%emt 0:00:04]} b6 {[%emt 0:00:20]} 34. Nd3 {[%emt 0:00:15]} Qh7 {[%emt 0:03:50]} 35. Nef4 {[%emt 0:00:37]} Nce7 {[%emt 0:00:02]} 36. Qe1 {[%emt 0:00:51]} Qf7 {[%emt 0:00:42]} 37. Kb2 {[%emt 0:01:00]} a5 {[%emt 0:00:16]} 38. Kc2 {[%emt 0:00:46]} Ng6 {[%emt 0:00:30]} 39. Qe6 {[%emt 0:00:55]} Qxe6 {[%emt 0:00:42]} 40. Nxe6 {[%emt 0:00:01]} Nfxh4 {[%emt 0:00:44]} 41. Nef4 {[%emt 0:08:24]} Nxf4 {[%emt 0:02:10]} 42. Nxf4 {[%emt 0:00:01]} Nxf3 {[%emt 0:00:07]} 43. Nxh5 $15 {[%emt 0:01:32][%mdl 4096] Endgame KN-KN} f5 {[%emt 0:00:33]} 44. Kd3 {[%emt 0:02:47]} (44. Ng7 $11) 44... Ng5 $1 {[%emt 0:02:57]} 45. Ke3 {[%emt 0:00:54]} b5 {[%emt 0:02:48]} ({Better is} 45... Ne4 $17 46. Kd3 Kb7) 46. Nf4 {[%emt 0:14:46]} c6 {[%emt 0:01:13]} 47. Ne2 $1 {[%emt 0:00:51]} Ne6 {[%emt 0:04:37]} 48. Nf4 {[%emt 0:00:31]} Ng7 {[%emt 0:02:39]} 49. Nd3 {[%emt 0:02:05]} Nh5 {[%emt 0:05:32]} (49... Kc7 $5 {[%cal Rg7e6]}) 50. c4 {[%emt 0:02:54]} (50. Nf4 $11 Ng3 51. Kf3) 50... dxc4 {[%emt 0:01:06]} ({Reject} 50... bxc4 51. bxc4 Kc8 52. cxd5 cxd5 53. a4 $11) 51. bxc4 {[%emt 0:00:02]} Kc7 {[%emt 0:03:04] And now ...Nf6 would win.} 52. c5 $2 {[%emt 0:00:33][%mdl 8192] Loses the game.} ({White should try} 52. Ne5 $15) 52... b4 $1 $19 {[%emt 0:01:50]} 53. d5 $2 {[%emt 0:01:16]} (53. Kf3) 53... cxd5 {[%emt 0:01:38]} 54. Kd4 {[%emt 0:00:06]} Nf6 {[%emt 0:02:48]} 55. Ke5 {[%emt 0:00:09]} Ne4 {[%emt 0:00:09] Strongly threatening ...Nc3.} 56. Kxd5 {[%emt 0:00:28]} Nc3+ {[%emt 0:00:09]} 57. Kc4 {[%emt 0:00:14]} Nxa2 {[%emt 0:00:25]} 58. Kb5 {[%emt 0:00:16] [#]} b3 $1 {[%emt 0:00:18][%cal Of5f4] Hoping for ...f4!} 59. Kxa5 {[%emt 0:00:50] [#]} Nc1 $1 {[%emt 0:01:36][%mdl 512] Black mates.} 60. Nb2 {[%emt 0:00:16] [#]} (60. Ka4 Nxd3) 60... f4 $1 {[%emt 0:00:04][%cal Bf5f4,Bf4f3,Bf3f2][%mdl 32]} 61. Nd1 {[%emt 0:02:12]} f3 {[%emt 0:00:34]} 62. Ka4 {[%emt 0:00:35]} b2 {[%emt 0:00:29]} 63. Nxb2 {[%emt 0:00:24]} f2 {[%emt 0:00:07] Weighted Error Value: White=0.60/Black=0.09 (flawless)} 0-1

[Event "55th Biel Festival MTO 2022"]
[Site "Biel"]
[Date "2022.07.21"]
[Round "8.34"]
[White "Bewersdorff Oliver"]
[Black "Jaksland Tim"]
[Result "1/2-1/2"]
[ECO "D38"]
[WhiteElo "2280"]
[BlackElo "2149"]
[Annotator "ChessBase"]
[PlyCount "67"]
[EventDate "2022.07.13"]
[EventType "swiss"]
[EventCountry "SUI"]
[SourceTitle "playchess.com"]
[Source "ChessBase"]
[SourceQuality "1"]
[TimeControl "40/5400+30:1800+30"]

1. c4 {[%emt 0:00:04]} Nf6 {[%emt 0:00:37]} 2. Nf3 {[%emt 0:00:19]} e6 {[%emt 0:00:41]} 3. Nc3 {[%emt 0:00:58]} d5 {[%emt 0:01:50]} 4. d4 {[%emt 0:00:11]} Bb4 {[%emt 0:00:18]} 5. cxd5 {[%emt 0:00:58]} exd5 {[%emt 0:00:15]} 6. Bg5 {[%emt 0:00:08]} h6 {[%emt 0:01:34]} 7. Bxf6 {[%emt 0:03:18]} Qxf6 {[%emt 0:00:07]} 8. Qb3 {[%emt 0:00:33]} c5 {[%emt 0:03:18]} 9. e3 {[%emt 0:05:51]} Nc6 {[%emt 0:03:01]} 10. dxc5 {[%emt 0:13:43]} Be6 {[%emt 0:10:18]} 11. Bb5 {[%emt 0:07:38]} Bxc5 {[%emt 0:15:29]} 12. Qa4 {[%emt 0:13:45]} O-O {[%emt 0:05:32]} 13. O-O {[%emt 0:04:17]} Rac8 {[%emt 0:04:57]} 14. Rad1 {[%emt 0:03:43]} Rfd8 {[%emt 0:01:00]} 15. Rd2 {[%emt 0:02:18]} Bb6 {[%emt 0:12:57]} 16. Rfd1 {[%emt 0:01:23]} Ne5 {[%emt 0:04:11]} 17. Nxe5 {[%emt 0:02:23]} Qxe5 {[%emt 0:00:06]} 18. Be2 {[%emt 0:03:00]} Rd7 {[%emt 0:05:39]} 19. Nb5 {[%emt 0:05:28]} a6 {[%emt 0:09:51]} 20. Nd4 {[%emt 0:02:36]} Bxd4 {[%emt 0:04:30]} 21. Rxd4 {[%emt 0:04:29]} Rdc7 {[%emt 0:00:21]} 22. R4d2 {[%emt 0:00:20]} Rc1 {[%emt 0:01:37]} 23. g3 {[%emt 0:00:50]} Qe4 {[%emt 0:01:25]} 24. Qd4 {[%emt 0:03:19]} Qxd4 {[%emt 0:02:25]} 25. Rxd4 {[%emt 0:04:18]} R8c2 {[%emt 0:06:41]} 26. Rxc1 {[%emt 0:00:30]} Rxc1+ {[%emt 0:00:30]} 27. Bd1 {[%emt 0:00:30]} Bg4 {[%emt 0:00:30]} 28. Rxg4 {[%emt 0:00:16]} Rxd1+ {[%emt 0:00:03]} 29. Kg2 {[%emt 0:00:12]} Rd2 {[%emt 0:00:10]} 30. Rb4 {[%emt 0:00:19]} b5 {[%emt 0:00:07]} 31. a4 {[%emt 0:01:09]} bxa4 {[%emt 0:00:34]} 32. Rxa4 {[%emt 0:00:10]} Rxb2 {[%emt 0:00:14]} 33. Rxa6 {[%emt 0:00:10]} Kf8 {[%emt 0:00:26]} 34. Ra8+ {[%emt 0:05:01]} 1/2-1/2

[Event "55th Biel Festival MTO 2022"]
[Site "Biel"]
[Date "2022.07.21"]
[Round "8.35"]
[White "Foerster-Yialamas, Lucas"]
[Black "Nideroest, Bruno"]
[Result "1/2-1/2"]
[ECO "B32"]
[WhiteElo "2147"]
[BlackElo "2258"]
[Annotator "ChessBase"]
[PlyCount "90"]
[EventDate "2022.07.13"]
[EventType "swiss"]
[EventCountry "SUI"]
[SourceTitle "playchess.com"]
[Source "ChessBase"]
[SourceQuality "1"]
[TimeControl "40/5400+30:1800+30"]

1. e4 {[%emt 0:00:02]} c5 {[%emt 0:02:34]} 2. Nf3 {[%emt 0:00:30]} Nc6 {[%emt 0:00:03]} 3. d4 {[%emt 0:00:20]} cxd4 {[%emt 0:00:05]} 4. Nxd4 {[%emt 0:00:09]} e5 {[%emt 0:00:02]} 5. Nb5 {[%emt 0:00:59]} d6 {[%emt 0:00:07]} 6. N1c3 {[%emt 0:01:01]} a6 {[%emt 0:00:10]} 7. Na3 {[%emt 0:00:06]} Be7 {[%emt 0:00:02]} 8. Nc4 {[%emt 0:01:45]} b5 {[%emt 0:00:25]} 9. Ne3 {[%emt 0:00:07]} Nf6 {[%emt 0:00:04]} 10. Ned5 {[%emt 0:04:42]} O-O {[%emt 0:03:09]} 11. Be3 {[%emt 0:06:24]} Rb8 {[%emt 0:02:17]} 12. Be2 {[%emt 0:02:22]} b4 {[%emt 0:04:25]} 13. Nxf6+ {[%emt 0:00:22]} Bxf6 {[%emt 0:00:02]} 14. Nd5 {[%emt 0:00:03]} Bg5 {[%emt 0:00:40]} 15. O-O {[%emt 0:09:28]} Bxe3 {[%emt 0:09:06]} 16. Nxe3 {[%emt 0:01:01]} a5 {[%emt 0:01:09]} 17. Bc4 {[%emt 0:07:23]} Qb6 {[%emt 0:08:03]} 18. Qd3 {[%emt 0:02:56]} Rd8 {[%emt 0:21:20]} 19. Rfd1 {[%emt 0:03:47]} Qc5 {[%emt 0:06:16]} 20. Rd2 {[%emt 0:07:35]} a4 {[%emt 0:12:47]} 21. Rad1 {[%emt 0:05:57]} Nd4 {[%emt 0:14:15]} 22. c3 {[%emt 0:01:44]} bxc3 {[%emt 0:00:15]} 23. bxc3 {[%emt 0:00:22]} Ne6 {[%emt 0:00:11]} 24. Qd5 {[%emt 0:11:12]} Qc7 {[%emt 0:02:12]} 25. f3 {[%emt 0:03:26]} g6 {[%emt 0:04:11]} 26. g3 {[%emt 0:02:02]} Nc5 {[%emt 0:01:08]} 27. Re2 {[%emt 0:02:02]} a3 {[%emt 0:00:36]} 28. Qd2 {[%emt 0:02:05]} Kg7 {[%emt 0:02:18]} 29. Nd5 {[%emt 0:00:44]} Qa7 {[%emt 0:00:57]} 30. Kg2 {[%emt 0:01:12]} Be6 {[%emt 0:00:23]} 31. Qg5 {[%emt 0:02:00]} Bxd5 {[%emt 0:00:20]} 32. Bxd5 {[%emt 0:01:07]} h6 {[%emt 0:00:13]} 33. Qc1 {[%emt 0:01:13]} Rb6 {[%emt 0:01:18]} 34. f4 {[%emt 0:02:43]} Rdb8 {[%emt 0:01:58]} 35. fxe5 {[%emt 0:02:47]} Rb2 {[%emt 0:00:45]} 36. Qe3 {[%emt 0:02:43]} Rxe2+ {[%emt 0:01:19]} 37. Qxe2 {[%emt 0:00:03]} dxe5 {[%emt 0:00:19]} 38. Rd2 {[%emt 0:00:36]} Rb1 {[%emt 0:02:01]} 39. Qf2 {[%emt 0:01:07]} Qc7 {[%emt 0:00:36]} 40. h4 {[%emt 0:02:24]} h5 {[%emt 0:00:12]} 41. Kh2 {[%emt 0:35:26]} Qe7 {[%emt 0:05:23]} 42. Bc6 {[%emt 0:00:00]} Rb6 {[%emt 0:07:23]} 43. Bd5 {[%emt 0:00:00]} Rb1 {[%emt 0:06:30]} 44. Bc6 {[%emt 0:00:00]} Rb6 {[%emt 0:06:09]} 45. Bd5 {[%emt 0:00:00]} Rb1 {[%emt 0:01:40]} 1/2-1/2

[Event "55th Biel Festival MTO 2022"]
[Site "Biel"]
[Date "2022.07.21"]
[Round "8.36"]
[White "Kittler, Thorsten"]
[Black "Aydin, Gulenay"]
[Result "1/2-1/2"]
[ECO "E63"]
[WhiteElo "2226"]
[BlackElo "2100"]
[Annotator "TA"]
[PlyCount "167"]
[EventDate "2022.07.13"]
[EventType "swiss"]
[EventCountry "SUI"]
[SourceTitle "playchess.com"]
[Source "ChessBase"]
[SourceQuality "1"]
[TimeControl "40/5400+30:1800+30"]

{[%evp 17,167,25,30,13,29,29,39,29,35,33,20,25,72,-8,0,0,0,-5,33,2,102,109,99,90,94,100,99,102,123,97,80,55,53,60,50,31,49,37,121,114,193,193,193,213,210,51,43,0,187,0,41,17,16,16,16,16,16,6,6,0,16,16,27,27,27,27,58,58,58,58,114,107,127,130,342,286,368,132,591,628,953,915,908,874,875,812,773,699,638,589,547,499,457,402,272,270,243,247,253,247,263,263,263,196,235,95,810,534,6191,6009,5065,2572,5439,6079,6131,6095,5606,5486,5193,4133,5012,4133,4133,4133,4133,0,4398,0,4133,4133,4133,4133,4133,3985,4133,4133,4133,1310,1086,777,645,602,556,326,308,248,135,109,109,109,81,0]} 1. d4 {[%emt 0:00:03]} Nf6 {[%emt 0:00:07]} 2. Nf3 {[%emt 0:00:05]} g6 {[%emt 0:00:05]} 3. g3 {[%emt 0:00:05]} Bg7 {[%emt 0:00:05]} 4. Bg2 {[%emt 0:00:05]} O-O {[%emt 0:00:07]} 5. c4 {[%emt 0:00:15]} d6 {[%emt 0:00:06]} 6. O-O {[%emt 0:00:10]} Nc6 {[%emt 0:00:34]} 7. Nc3 {[%emt 0:10:26]} a6 {[%emt 0:00:23]} 8. h3 {[%emt 0:08:25] 8.Bf4 is a critical line.} e5 {[%emt 0:11:05]} 9. d5 {[%emt 0:03:00]} Ne7 {[%emt 0:00:52][%cal Ob7b5]} 10. e4 {[%emt 0:01:28] E63: King's Indian: Fianchetto: Panno Variation with 7...a6.} Nd7 {[%emt 0:10:29]} 11. Be3 {[%emt 0:11:52]} f5 {[%emt 0:11:42]} 12. Qd2 {[%emt 0:02:54] White is slightly better.} Nf6 {[%emt 0:02:35]} 13. Ng5 {[%emt 0:05:23] [#]} Nh5 $146 {[%emt 0:06:02]} ({Predecessor:} 13... fxe4 14. Ncxe4 Nf5 15. Nxf6+ Bxf6 16. Ne4 Nxe3 17. Qxe3 Bf5 18. Nxf6+ Rxf6 19. c5 dxc5 20. Qxc5 {½-½ (90) Ljubojevic,L (2570)-Ivanchuk,V (2740) Monte Carlo 1997}) 14. exf5 {[%emt 0:06:51]} gxf5 {[%emt 0:02:49]} (14... Nxf5 $11 {deserves consideration.} 15. Ne6 Bxe6 16. dxe6 Nxe3 17. Qxe3 c6) 15. Ne2 {[%emt 0:06:41] 0x0.001f20181013dp-1022s more active pieces.} (15. Ne6 $16 Bxe6 16. dxe6) 15... Ng6 {[%emt 0:12:36] Threatens to win with ...f4.} 16. f4 {[%emt 0:04:08]} exf4 {[%emt 0:19:32]} 17. gxf4 {[%emt 0:01:41]} h6 {[%emt 0:00:51]} 18. Nf3 {[%emt 0:00:32]} Nh4 {[%emt 0:01:36]} (18... Kh7 $11 {remains equal.}) 19. Nxh4 $16 {[%emt 0:03:43]} Qxh4 {[%emt 0:00:03]} 20. Bf2 {[%emt 0:01:39]} Qf6 {[%emt 0:02:10]} 21. Bf3 {[%emt 0:01:14]} Qf7 {[%emt 0:03:01]} 22. Kh2 {[%emt 0:01:16]} Kh7 {[%emt 0:00:30]} 23. Rg1 $36 {[%emt 0:02:41][%mdl 2048] Black is under strong pressure.} Bd7 {[%emt 0:00:13]} 24. Rg2 {[%emt 0:07:04]} Rg8 {[%emt 0:00:21]} 25. Rag1 {[%emt 0:00:06]} Bf6 {[%emt 0:04:44]} 26. Bd4 {[%emt 0:04:39]} Bxd4 {[%emt 0:01:37]} 27. Qxd4 {[%emt 0:02:39] Hoping for Bxh5. Dancing on a razor blade.} Nf6 {[%emt 0:02:02]} (27... Rxg2+ $14 28. Rxg2 Nf6) 28. Ng3 $1 {[%emt 0:03:06][%cal Og3h5]} Raf8 {[%emt 0:01:51] [#]} (28... Qe7 $16 {was worth a try.}) 29. Nh5 $1 $18 {[%emt 0:01:35][%mdl 512] White threatens Rxg8 and mate.} Rxg2+ {[%emt 0:02:16]} (29... Nxh5 $2 30. Bxh5 Rxg2+ 31. Rxg2 $18) (29... Ne8 30. Qc3) 30. Rxg2 {[%emt 0:00:06] And now Rg7+ would win.} Ne8 {[%emt 0:00:48] Prevents Rg7+.} 31. Re2 $2 {[%emt 0:03:36]} ({White should play} 31. b3 $18) 31... Ng7 $1 $14 {[%emt 0:00:37]} 32. Rg2 {[%emt 0:01:57]} Ne8 $1 $18 {[%emt 0:00:22]} 33. Re2 {[%emt 0:02:36]} (33. Qc3 $18) 33... Ng7 $1 $14 {[%emt 0:00:10]} 34. Qxg7+ {[%emt 0:00:33]} Qxg7 {[%emt 0:00:06]} 35. Nxg7 {[%emt 0:00:05]} Kxg7 {[%emt 0:00:11][%mdl 4096] Endgame KRB-KRB} 36. Re7+ {[%emt 0:00:02]} Rf7 {[%emt 0:00:06]} 37. Rxf7+ {[%emt 0:00:09]} Kxf7 $11 {[%emt 0:00:01] KB-KB} 38. Kg3 {[%emt 0:00:11]} Ke7 {[%emt 0:01:38]} 39. Kf2 {[%emt 0:00:58]} Ba4 {[%emt 0:02:17]} 40. b3 {[%emt 0:00:13]} Be8 {[%emt 0:00:23]} 41. Ke3 {[%emt 0:31:13]} Bf7 {[%emt 0:30:58]} 42. b4 {[%emt 0:04:21]} Be8 {[%emt 0:00:00]} 43. Bd1 {[%emt 0:00:00]} Bd7 {[%emt 0:00:00]} (43... b6 $14) 44. a4 $1 $16 {[%emt 0:00:00][%cal Ba2a4,Ba4a5][%mdl 32]} Be8 {[%emt 0:00:00]} 45. a5 {[%emt 0:00:00]} Bd7 $2 {[%emt 0:00:00]} (45... Kd8 $16 {might work better.} 46. Bc2 Bg6) 46. Be2 {[%emt 0:00:00]} Be8 {[%emt 0:02:59]} 47. Bd3 {[%emt 0:00:00]} Bg6 {[%emt 0:00:51][%mdl 8192]} (47... Bd7 $16 {is a better chance.} 48. Kd4 Kf7) 48. c5 $18 {[%emt 0:00:00] Strongly threatening c6.} Kd8 {[%emt 0:01:09]} 49. c6 {[%emt 0:00:00]} Kc8 {[%emt 0:00:01]} 50. cxb7+ {[%emt 0:00:00]} Kxb7 {[%emt 0:00:01]} 51. Kf2 {[%emt 0:00:00]} Ka7 {[%emt 0:01:33]} 52. Kg3 {[%emt 0:00:00]} Kb7 {[%emt 0:00:16]} 53. Kh4 {[%emt 0:00:00]} Ka7 {[%emt 0:00:28]} 54. Be2 {[%emt 0:00:00]} Bf7 {[%emt 0:00:19]} 55. Bf3 {[%emt 0:00:00]} Kb7 {[%emt 0:00:28]} 56. Kg3 {[%emt 0:00:00]} Ka7 {[%emt 0:01:17]} 57. Kf2 {[%emt 0:00:00]} Kb7 {[%emt 0:00:19]} 58. Ke3 {[%emt 0:00:00]} Ka7 {[%emt 0:00:35]} 59. Kd4 {[%emt 0:00:00]} Kb7 {[%emt 0:00:10]} 60. Bd1 {[%emt 0:00:00]} Be8 {[%emt 0:00:14] [#]} 61. Bc2 {[%emt 0:00:00]} (61. Ke3 $1 $18) 61... Bg6 $2 {[%emt 0:01:35][%mdl 8192]} (61... Bd7 $16) 62. Ba4 {[%emt 0:00:00]} Bh5 {[%emt 0:00:24]} 63. Bd7 {[%emt 0:00:00]} Bg6 {[%emt 0:00:08]} 64. Kc4 {[%emt 0:00:00]} Ka7 {[%emt 0:00:31]} 65. b5 {[%emt 0:00:00]} Kb7 {[%emt 0:00:38]} 66. Kb4 {[%emt 0:00:00]} Ka7 {[%emt 0:00:27]} 67. bxa6 {[%emt 0:03:12]} Kxa6 {[%emt 0:00:02]} 68. Ka4 {[%emt 0:00:02]} Bf7 {[%emt 0:01:09]} 69. Be6 {[%emt 0:00:28]} Bg6 {[%emt 0:00:24]} 70. Kb4 {[%emt 0:00:05]} Kb7 {[%emt 0:00:33]} 71. Bd7 {[%emt 0:00:31]} Ka6 $1 {[%emt 0:00:19]} 72. Be6 {[%emt 0:03:44] Against Bf7} Kb7 {[%emt 0:00:22]} 73. Kb5 {[%emt 0:01:08] Inhibits c6+.} Be8+ {[%emt 0:00:11] [#]} 74. Kc4 $1 {[%emt 0:00:04]} Bg6 {[%emt 0:00:27]} 75. Kb4 {[%emt 0:00:06]} Ka6 {[%emt 0:00:55]} 76. Bd7 {[%emt 0:00:12]} Bf7 {[%emt 0:00:37]} 77. Bxf5 {[%emt 0:00:28]} Bxd5 {[%emt 0:00:01]} 78. Bd3+ {[%emt 0:00:06]} Kb7 {[%emt 0:00:45]} 79. f5 {[%emt 0:00:13] aiming for Bc4.} Bf7 {[%emt 0:01:13]} 80. Bb5 {[%emt 0:02:40] Black must now prevent Bd7.} c6 {[%emt 0:00:31]} 81. Be2 {[%emt 0:00:00]} c5+ {[%emt 0:00:32]} 82. Kb5 {[%emt 0:00:22]} Be8+ {[%emt 0:00:06]} 83. Kc4 {[%emt 0:00:07]} Bf7+ {[%emt 0:00:06]} 84. Kb5 {[%emt 0:02:32] Weighted Error Value: White=0.26 (precise) /Black=0.33} ({Better is} 84. Kc3 $16) 1/2-1/2